[Event "Titled Tuesday Blitz May 23 Early 2023"]
[White "Schmakel, Sam"]
[Black "Richter, Paul"]
[WhiteFideId "2039311"]
[BlackFideId "2046350"]
[WhiteElo "2356"]
[BlackElo "2532"]
[Result "1-0"]
[Round "04"]
[TimeControl "180+2"]
[Date "2023.05.23"]
[WhiteClock "0:00:25"]
[BlackClock "0:00:00"]

1. d4 {[%clk 0:03:00]}  Nf6 {[%clk 0:02:59]} 2. c4 {[%clk 0:03:01]}  g6 {[%clk 0:02:58]} 3. g3 {[%clk 0:03:01]}  Bg7 {[%clk 0:02:58]} 4. Bg2 {[%clk 0:03:01]}  O-O {[%clk 0:02:58]} 5. Nc3 {[%clk 0:03:02]}  d6 {[%clk 0:02:59]} 6. Nf3 {[%clk 0:03:02]}  Nbd7 {[%clk 0:02:58]} 7. O-O {[%clk 0:03:01]}  e5 {[%clk 0:02:57]} 8. e4 {[%clk 0:03:00]}  exd4 {[%clk 0:02:57]} 9. Nxd4 {[%clk 0:03:01]}  Re8 {[%clk 0:02:57]} 10. h3 {[%clk 0:02:52]}  a6 {[%clk 0:02:55]} 11. Be3 {[%clk 0:02:35]}  Rb8 {[%clk 0:02:51]} 12. Rc1 {[%clk 0:02:28]}  Ne5 {[%clk 0:02:50]} 13. b3 {[%clk 0:02:27]}  c5 {[%clk 0:02:48]} 14. Nde2 {[%clk 0:02:20]}  Qc7 {[%clk 0:02:42]} 15. f4 {[%clk 0:02:16]}  Ned7 {[%clk 0:02:36]} 16. g4 {[%clk 0:02:08]}  b5 {[%clk 0:02:28]} 17. Ng3 {[%clk 0:02:02]}  b4 {[%clk 0:02:25]} 18. Nb1 {[%clk 0:01:55]}  Bb7 {[%clk 0:02:21]} 19. Nd2 {[%clk 0:01:53]}  h6 {[%clk 0:00:50]} 20. h4 {[%clk 0:01:52]}  Rbd8 {[%clk 0:00:36]} 21. g5 {[%clk 0:01:51]}  hxg5 {[%clk 0:00:30]} 22. hxg5 {[%clk 0:01:52]}  Nh7 {[%clk 0:00:30]} 23. Qg4 {[%clk 0:01:13]}  Ndf8 {[%clk 0:00:19]} 24. f5 {[%clk 0:00:50]}  gxf5 {[%clk 0:00:17]} 25. Nxf5 {[%clk 0:00:49]}  Ng6 {[%clk 0:00:17]} 26. Qh5 {[%clk 0:00:49]}  Qd7 {[%clk 0:00:08]} 27. Rf2 {[%clk 0:00:39]}  Qe6 {[%clk 0:00:08]} 28. Rcf1 {[%clk 0:00:38]}  Rd7 {[%clk 0:00:09]} 29. Bh3 {[%clk 0:00:37]}  Qe5 {[%clk 0:00:04]} 30. Nxg7 {[%clk 0:00:37]}  Qg3+ {[%clk 0:00:02]} 31. Kh1 {[%clk 0:00:31]}  Rxe4 {[%clk 0:00:03]} 32. Nxe4 {[%clk 0:00:26]}  Bxe4+ {[%clk 0:00:02]} 33. Bg2 {[%clk 0:00:27]}  Bxg2+ {[%clk 0:00:01]} 34. Rxg2 {[%clk 0:00:28]}  Qxe3 {[%clk 0:00:01]} 35. Nf5 {[%clk 0:00:25]}  Nhf8 {[%clk 0:00:00]} 36. Nxe3 {[%clk 0:00:25]} 1-0


[Site "https://www.chess.com"]

[Event "Titled Tuesday Blitz May 23 Early 2023"]
[White "Ioannidis, Evgenios"]
[Black "Kuzmin, Roman"]
[WhiteFideId "4229274"]
[BlackFideId "44134932"]
[WhiteElo "2386"]
[BlackElo "2122"]
[Result "1/2-1/2"]
[Round "04"]
[TimeControl "180+2"]
[Date "2023.05.23"]
[WhiteClock "0:00:29"]
[BlackClock "0:00:12"]

1. d4 {[%clk 0:03:00]}  Nf6 {[%clk 0:02:59]} 2. c4 {[%clk 0:02:58]}  e6 {[%clk 0:02:59]} 3. Nc3 {[%clk 0:02:59]}  d5 {[%clk 0:03:00]} 4. cxd5 {[%clk 0:02:59]}  exd5 {[%clk 0:03:01]} 5. Bg5 {[%clk 0:03:00]}  c6 {[%clk 0:03:01]} 6. e3 {[%clk 0:03:00]}  Nbd7 {[%clk 0:03:02]} 7. Bd3 {[%clk 0:03:01]}  Be7 {[%clk 0:03:02]} 8. Nf3 {[%clk 0:03:01]}  O-O {[%clk 0:03:03]} 9. Bf4 {[%clk 0:02:57]}  Re8 {[%clk 0:03:02]} 10. h3 {[%clk 0:02:57]}  Nf8 {[%clk 0:03:01]} 11. O-O {[%clk 0:02:41]}  Ne6 {[%clk 0:02:55]} 12. Bg3 {[%clk 0:02:36]}  g6 {[%clk 0:02:55]} 13. Ne5 {[%clk 0:02:32]}  Ng7 {[%clk 0:02:51]} 14. Rc1 {[%clk 0:02:05]}  Bf5 {[%clk 0:02:49]} 15. f3 {[%clk 0:02:02]}  Nd7 {[%clk 0:02:44]} 16. e4 {[%clk 0:01:57]}  Nxe5 {[%clk 0:02:28]} 17. Bxe5 {[%clk 0:01:55]}  dxe4 {[%clk 0:02:15]} 18. fxe4 {[%clk 0:01:55]}  Be6 {[%clk 0:02:15]} 19. d5 {[%clk 0:01:35]}  cxd5 {[%clk 0:01:55]} 20. Bb5 {[%clk 0:01:35]}  Rf8 {[%clk 0:00:42]} 21. exd5 {[%clk 0:01:31]}  Bd7 {[%clk 0:00:39]} 22. Bxd7 {[%clk 0:01:20]}  Qxd7 {[%clk 0:00:40]} 23. d6 {[%clk 0:01:20]}  Bg5 {[%clk 0:00:36]} 24. Nd5 {[%clk 0:01:17]}  Rfe8 {[%clk 0:00:30]} 25. Bxg7 {[%clk 0:01:13]}  Kxg7 {[%clk 0:00:28]} 26. Qd4+ {[%clk 0:01:11]}  Kg8 {[%clk 0:00:26]} 27. Nf6+ {[%clk 0:01:11]}  Bxf6 {[%clk 0:00:25]} 28. Rxf6 {[%clk 0:01:12]}  Rad8 {[%clk 0:00:20]} 29. Rcf1 {[%clk 0:01:10]}  Re6 {[%clk 0:00:19]} 30. Qd5 {[%clk 0:01:02]}  Qxd6 {[%clk 0:00:14]} 31. Qxd6 {[%clk 0:00:56]}  Rexd6 {[%clk 0:00:15]} 32. Rxf7 {[%clk 0:00:55]}  R6d7 {[%clk 0:00:15]} 33. R7f3 {[%clk 0:00:54]}  Kg7 {[%clk 0:00:16]} 34. a4 {[%clk 0:00:47]}  Re7 {[%clk 0:00:16]} 35. R1f2 {[%clk 0:00:45]}  Rd1+ {[%clk 0:00:16]} 36. Kh2 {[%clk 0:00:45]}  Rd4 {[%clk 0:00:16]} 37. b3 {[%clk 0:00:45]}  Rb4 {[%clk 0:00:16]} 38. Rc2 {[%clk 0:00:42]}  a5 {[%clk 0:00:13]} 39. g4 {[%clk 0:00:37]}  h6 {[%clk 0:00:07]} 40. Rc5 {[%clk 0:00:35]}  b6 {[%clk 0:00:06]} 41. Rc6 {[%clk 0:00:35]}  Rf7 {[%clk 0:00:06]} 42. Re3 {[%clk 0:00:33]}  Rf6 {[%clk 0:00:03]} 43. Rc7+ {[%clk 0:00:28]}  Rf7 {[%clk 0:00:03]} 44. Rc2 {[%clk 0:00:29]}  Rd7 {[%clk 0:00:02]} 45. Kg3 {[%clk 0:00:28]}  Rf7 {[%clk 0:00:02]} 46. Rc6 {[%clk 0:00:28]}  Rd7 {[%clk 0:00:01]} 47. h4 {[%clk 0:00:23]}  Rdd4 {[%clk 0:00:01]} 48. Re7+ {[%clk 0:00:18]}  Kf8 {[%clk 0:00:01]} 49. Rb7 {[%clk 0:00:17]}  Rxg4+ {[%clk 0:00:02]} 50. Kf3 {[%clk 0:00:16]}  Rgf4+ {[%clk 0:00:02]} 51. Ke3 {[%clk 0:00:16]}  Rfe4+ {[%clk 0:00:02]} 52. Kd3 {[%clk 0:00:17]}  Re7 {[%clk 0:00:02]} 53. Rbxb6 {[%clk 0:00:15]}  Rb7 {[%clk 0:00:02]} 54. Rxb7 {[%clk 0:00:14]}  Rxb7 {[%clk 0:00:03]} 55. Kc3 {[%clk 0:00:15]}  Rg7 {[%clk 0:00:02]} 56. Rc5 {[%clk 0:00:15]}  g5 {[%clk 0:00:02]} 57. hxg5 {[%clk 0:00:15]}  hxg5 {[%clk 0:00:03]} 58. Rxa5 {[%clk 0:00:16]}  g4 {[%clk 0:00:04]} 59. Rf5+ {[%clk 0:00:16]}  Ke7 {[%clk 0:00:04]} 60. Rf1 {[%clk 0:00:17]}  g3 {[%clk 0:00:04]} 61. Kc4 {[%clk 0:00:17]}  Kd6 {[%clk 0:00:05]} 62. a5 {[%clk 0:00:16]}  g2 {[%clk 0:00:05]} 63. Rg1 {[%clk 0:00:16]}  Kc6 {[%clk 0:00:06]} 64. b4 {[%clk 0:00:16]}  Rg4+ {[%clk 0:00:06]} 65. Kc3 {[%clk 0:00:16]}  Kb5 {[%clk 0:00:06]} 66. Kd3 {[%clk 0:00:16]}  Rxb4 {[%clk 0:00:05]} 67. Rxg2 {[%clk 0:00:16]}  Kxa5 {[%clk 0:00:06]} 68. Rg8 {[%clk 0:00:16]}  Rb6 {[%clk 0:00:05]} 69. Kc4 {[%clk 0:00:17]}  Rc6+ {[%clk 0:00:06]} 70. Kd5 {[%clk 0:00:17]}  Rc1 {[%clk 0:00:07]} 71. Ra8+ {[%clk 0:00:17]}  Kb6 {[%clk 0:00:07]} 72. Rb8+ {[%clk 0:00:18]}  Ka7 {[%clk 0:00:07]} 73. Rb2 {[%clk 0:00:18]}  Rc7 {[%clk 0:00:07]} 74. Kd6 {[%clk 0:00:18]}  Rc1 {[%clk 0:00:07]} 75. Ra2+ {[%clk 0:00:19]}  Kb6 {[%clk 0:00:07]} 76. Rb2+ {[%clk 0:00:19]}  Ka7 {[%clk 0:00:08]} 77. Kd7 {[%clk 0:00:19]}  Rc3 {[%clk 0:00:07]} 78. Rb4 {[%clk 0:00:20]}  Ka6 {[%clk 0:00:07]} 79. Rb1 {[%clk 0:00:19]}  Ka5 {[%clk 0:00:08]} 80. Kd6 {[%clk 0:00:19]}  Ka6 {[%clk 0:00:08]} 81. Kd5 {[%clk 0:00:20]}  Rc2 {[%clk 0:00:08]} 82. Rb3 {[%clk 0:00:20]}  Rc7 {[%clk 0:00:08]} 83. Ra3+ {[%clk 0:00:20]}  Kb5 {[%clk 0:00:08]} 84. Kd6 {[%clk 0:00:21]}  Rc1 {[%clk 0:00:08]} 85. Rb3+ {[%clk 0:00:21]}  Ka4 {[%clk 0:00:08]} 86. Rb8 {[%clk 0:00:21]}  Ka5 {[%clk 0:00:09]} 87. Ra8+ {[%clk 0:00:21]}  Kb4 {[%clk 0:00:09]} 88. Rb8+ {[%clk 0:00:21]}  Ka5 {[%clk 0:00:09]} 89. Rh8 {[%clk 0:00:21]}  Kb4 {[%clk 0:00:10]} 90. Rh3 {[%clk 0:00:22]}  Ka5 {[%clk 0:00:10]} 91. Kd5 {[%clk 0:00:22]}  Ka4 {[%clk 0:00:10]} 92. Kd4 {[%clk 0:00:23]}  Ka5 {[%clk 0:00:11]} 93. Kd3 {[%clk 0:00:23]}  Ka6 {[%clk 0:00:11]} 94. Rh6+ {[%clk 0:00:24]}  Ka7 {[%clk 0:00:11]} 95. Kd2 {[%clk 0:00:25]}  Rc8 {[%clk 0:00:11]} 96. Rh7+ {[%clk 0:00:25]}  Ka6 {[%clk 0:00:11]} 97. Rh3 {[%clk 0:00:25]}  Ka5 {[%clk 0:00:12]} 98. Ra3+ {[%clk 0:00:26]}  Kb4 {[%clk 0:00:12]} 99. Ra1 {[%clk 0:00:27]}  Kb5 {[%clk 0:00:11]} 100. Rb1+ {[%clk 0:00:27]}  Ka6 {[%clk 0:00:12]} 101. Ra1+ {[%clk 0:00:28]}  Kb5 {[%clk 0:00:12]} 102. Rc1 {[%clk 0:00:29]}  Rxc1 {[%clk 0:00:12]} 103. Kxc1 {[%clk 0:00:29]} 1/2-1/2


[Site "https://www.chess.com"]

[Event "Titled Tuesday Blitz May 23 Early 2023"]
[White "gueraumasague"]
[Black "Weetik, Vjacheslav"]
[BlackFideId "4153472"]
[WhiteElo "2528"]
[BlackElo "2469"]
[Result "1-0"]
[Round "04"]
[TimeControl "180+2"]
[Date "2023.05.23"]
[WhiteClock "0:01:22"]
[BlackClock "0:00:32"]

1. e4 {[%clk 0:03:00]}  c6 {[%clk 0:02:57]} 2. Nc3 {[%clk 0:03:00]}  d5 {[%clk 0:02:57]} 3. Nf3 {[%clk 0:03:01]}  dxe4 {[%clk 0:02:56]} 4. Nxe4 {[%clk 0:03:01]}  Nf6 {[%clk 0:02:57]} 5. Qe2 {[%clk 0:03:00]}  Na6 {[%clk 0:02:57]} 6. Nxf6+ {[%clk 0:02:58]}  gxf6 {[%clk 0:02:57]} 7. g3 {[%clk 0:02:55]}  Bg4 {[%clk 0:02:57]} 8. Bg2 {[%clk 0:02:55]}  Nb4 {[%clk 0:02:57]} 9. d3 {[%clk 0:02:55]}  Qd5 {[%clk 0:02:57]} 10. h3 {[%clk 0:02:54]}  Nxc2+ {[%clk 0:02:56]} 11. Qxc2 {[%clk 0:02:39]}  Bxf3 {[%clk 0:02:56]} 12. Bxf3 {[%clk 0:02:40]}  Qxf3 {[%clk 0:02:56]} 13. O-O {[%clk 0:02:39]}  Rg8 {[%clk 0:02:45]} 14. d4 {[%clk 0:02:27]}  e6 {[%clk 0:02:39]} 15. Qxh7 {[%clk 0:02:24]}  Rg6 {[%clk 0:02:29]} 16. Bf4 {[%clk 0:02:19]}  Rd8 {[%clk 0:02:19]} 17. Rad1 {[%clk 0:02:07]}  Rd5 {[%clk 0:02:18]} 18. Rfe1 {[%clk 0:01:44]}  Bb4 {[%clk 0:01:37]} 19. Rxe6+ {[%clk 0:01:40]}  fxe6 {[%clk 0:01:03]} 20. Qxg6+ {[%clk 0:01:39]}  Kd7 {[%clk 0:01:02]} 21. Rd3 {[%clk 0:01:34]}  Qe2 {[%clk 0:00:57]} 22. Qf7+ {[%clk 0:01:22]}  Be7 {[%clk 0:00:55]} 23. Re3 {[%clk 0:01:23]}  Qd1+ {[%clk 0:00:52]} 24. Kg2 {[%clk 0:01:23]}  e5 {[%clk 0:00:41]} 25. dxe5 {[%clk 0:01:23]}  fxe5 {[%clk 0:00:32]} 26. Bg5 {[%clk 0:01:22]} 1-0


[Site "https://www.chess.com"]

[Event "Titled Tuesday Blitz May 23 Early 2023"]
[White "Papasimakopoulos, Alexandros"]
[Black "tetrix83"]
[WhiteFideId "4244125"]
[WhiteElo "2359"]
[BlackElo "2525"]
[Result "1-0"]
[Round "04"]
[TimeControl "180+2"]
[Date "2023.05.23"]
[WhiteClock "0:01:18"]
[BlackClock "0:00:34"]

1. d4 {[%clk 0:03:00]}  Nf6 {[%clk 0:02:59]} 2. c4 {[%clk 0:03:00]}  g6 {[%clk 0:02:59]} 3. Nc3 {[%clk 0:03:00]}  Bg7 {[%clk 0:02:59]} 4. Bg5 {[%clk 0:03:01]}  d6 {[%clk 0:02:57]} 5. e3 {[%clk 0:03:00]}  O-O {[%clk 0:02:44]} 6. Be2 {[%clk 0:02:49]}  c5 {[%clk 0:02:42]} 7. d5 {[%clk 0:02:48]}  Bf5 {[%clk 0:02:39]} 8. g4 {[%clk 0:02:14]}  Ne4 {[%clk 0:01:58]} 9. Nxe4 {[%clk 0:02:08]}  Bxe4 {[%clk 0:01:57]} 10. f3 {[%clk 0:02:08]}  h6 {[%clk 0:01:50]} 11. Bf4 {[%clk 0:01:52]}  g5 {[%clk 0:01:43]} 12. fxe4 {[%clk 0:01:50]}  gxf4 {[%clk 0:01:43]} 13. exf4 {[%clk 0:01:51]}  Bxb2 {[%clk 0:01:40]} 14. Rb1 {[%clk 0:01:51]}  Bc3+ {[%clk 0:01:39]} 15. Kf2 {[%clk 0:01:51]}  e5 {[%clk 0:01:35]} 16. dxe6 {[%clk 0:01:47]}  fxe6 {[%clk 0:01:31]} 17. Nh3 {[%clk 0:01:35]}  Qh4+ {[%clk 0:01:16]} 18. Kg2 {[%clk 0:01:35]}  Bd4 {[%clk 0:01:05]} 19. Rxb7 {[%clk 0:01:33]}  Nc6 {[%clk 0:00:39]} 20. Qe1 {[%clk 0:01:25]}  Qf6 {[%clk 0:00:36]} 21. Qb1 {[%clk 0:01:24]}  Rab8 {[%clk 0:00:35]} 22. e5 {[%clk 0:01:19]}  dxe5 {[%clk 0:00:34]} 23. Qh7# {[%clk 0:01:18]} 1-0


[Site "https://www.chess.com"]

[Event "Titled Tuesday Blitz May 23 Early 2023"]
[White "Nazari, Arad"]
[Black "Manukyan, Artyom"]
[WhiteFideId "12577324"]
[BlackFideId "13305786"]
[WhiteElo "2175"]
[BlackElo "2078"]
[Result "1-0"]
[Round "04"]
[TimeControl "180+2"]
[Date "2023.05.23"]
[WhiteClock "0:01:18"]
[BlackClock "0:00:43"]

1. e4 {[%clk 0:03:00]}  c5 {[%clk 0:02:57]} 2. Nf3 {[%clk 0:03:01]}  d6 {[%clk 0:02:57]} 3. Bb5+ {[%clk 0:03:01]}  Bd7 {[%clk 0:02:57]} 4. Bxd7+ {[%clk 0:03:02]}  Qxd7 {[%clk 0:02:58]} 5. O-O {[%clk 0:03:03]}  Nc6 {[%clk 0:02:59]} 6. c3 {[%clk 0:03:03]}  Nf6 {[%clk 0:02:58]} 7. Re1 {[%clk 0:03:03]}  e6 {[%clk 0:02:58]} 8. d4 {[%clk 0:03:03]}  cxd4 {[%clk 0:02:59]} 9. cxd4 {[%clk 0:03:04]}  d5 {[%clk 0:03:00]} 10. e5 {[%clk 0:03:05]}  Ne4 {[%clk 0:03:00]} 11. a3 {[%clk 0:03:06]}  Be7 {[%clk 0:03:00]} 12. Qd3 {[%clk 0:03:07]}  O-O {[%clk 0:03:00]} 13. Nbd2 {[%clk 0:03:07]}  Nxd2 {[%clk 0:03:00]} 14. Bxd2 {[%clk 0:03:08]}  Rfc8 {[%clk 0:03:00]} 15. h4 {[%clk 0:03:02]}  h6 {[%clk 0:02:58]} 16. h5 {[%clk 0:03:01]}  Bd8 {[%clk 0:02:58]} 17. g4 {[%clk 0:02:59]}  Ne7 {[%clk 0:02:38]} 18. Kh1 {[%clk 0:02:49]}  Qa4 {[%clk 0:02:34]} 19. Bc3 {[%clk 0:02:46]}  Qc4 {[%clk 0:02:32]} 20. Qd2 {[%clk 0:02:40]}  Kh8 {[%clk 0:02:11]} 21. Qf4 {[%clk 0:02:11]}  Kg8 {[%clk 0:02:05]} 22. Re3 {[%clk 0:02:02]}  b5 {[%clk 0:01:51]} 23. Rg1 {[%clk 0:02:02]}  a5 {[%clk 0:01:47]} 24. g5 {[%clk 0:01:50]}  hxg5 {[%clk 0:01:46]} 25. Nxg5 {[%clk 0:01:29]}  Nf5 {[%clk 0:01:45]} 26. h6 {[%clk 0:01:30]}  Nxh6 {[%clk 0:01:42]} 27. Nxe6 {[%clk 0:01:25]}  fxe6 {[%clk 0:00:56]} 28. Qxh6 {[%clk 0:01:25]}  Qc7 {[%clk 0:00:55]} 29. Reg3 {[%clk 0:01:19]}  Ra7 {[%clk 0:00:50]} 30. Qxe6+ {[%clk 0:01:19]}  Kf8 {[%clk 0:00:43]} 31. Rf3+ {[%clk 0:01:18]} 1-0


[Site "https://www.chess.com"]

[Event "Titled Tuesday Blitz May 23 Early 2023"]
[White "Volkov, Maksim"]
[Black "Santos Flores, Alberto"]
[WhiteFideId "54123070"]
[BlackFideId "3601234"]
[WhiteElo "2297"]
[BlackElo "2235"]
[Result "1-0"]
[Round "04"]
[TimeControl "180+2"]
[Date "2023.05.23"]
[WhiteClock "0:00:11"]
[BlackClock "0:00:00"]

1. d4 {[%clk 0:03:00]}  d5 {[%clk 0:02:59]} 2. c4 {[%clk 0:03:01]}  c6 {[%clk 0:03:00]} 3. Nf3 {[%clk 0:03:01]}  Nf6 {[%clk 0:03:00]} 4. g3 {[%clk 0:03:02]}  Bf5 {[%clk 0:02:57]} 5. Nc3 {[%clk 0:03:02]}  e6 {[%clk 0:02:57]} 6. Nh4 {[%clk 0:03:03]}  Bg6 {[%clk 0:02:56]} 7. Nxg6 {[%clk 0:03:03]}  hxg6 {[%clk 0:02:57]} 8. Qd3 {[%clk 0:03:03]}  Nbd7 {[%clk 0:02:56]} 9. Bg2 {[%clk 0:03:03]}  Be7 {[%clk 0:02:54]} 10. O-O {[%clk 0:03:04]}  O-O {[%clk 0:02:54]} 11. b3 {[%clk 0:03:03]}  a6 {[%clk 0:02:45]} 12. Bb2 {[%clk 0:02:08]}  b5 {[%clk 0:02:44]} 13. e4 {[%clk 0:01:58]}  b4 {[%clk 0:02:27]} 14. e5 {[%clk 0:01:54]}  bxc3 {[%clk 0:02:26]} 15. exf6 {[%clk 0:01:53]}  cxb2 {[%clk 0:02:09]} 16. fxe7 {[%clk 0:01:53]}  bxa1=Q {[%clk 0:02:09]} 17. exf8=Q+ {[%clk 0:01:45]}  Qxf8 {[%clk 0:02:07]} 18. Rxa1 {[%clk 0:01:46]}  Qa3 {[%clk 0:02:07]} 19. Qc3 {[%clk 0:01:41]}  Nf6 {[%clk 0:02:00]} 20. Qc1 {[%clk 0:01:38]}  Qxc1+ {[%clk 0:01:56]} 21. Rxc1 {[%clk 0:01:39]}  a5 {[%clk 0:01:57]} 22. Bf1 {[%clk 0:01:31]}  a4 {[%clk 0:01:57]} 23. b4 {[%clk 0:01:30]}  a3 {[%clk 0:01:56]} 24. b5 {[%clk 0:01:26]}  cxb5 {[%clk 0:01:46]} 25. cxb5 {[%clk 0:01:26]}  Ne4 {[%clk 0:01:47]} 26. Bd3 {[%clk 0:01:11]}  Rb8 {[%clk 0:01:44]} 27. Rc6 {[%clk 0:01:06]}  Nd2 {[%clk 0:01:36]} 28. Rc3 {[%clk 0:00:46]}  Nc4 {[%clk 0:01:36]} 29. Rb3 {[%clk 0:00:45]}  Kf8 {[%clk 0:01:32]} 30. f3 {[%clk 0:00:38]}  Ke7 {[%clk 0:01:30]} 31. Kf2 {[%clk 0:00:37]}  Kd6 {[%clk 0:01:29]} 32. Ke2 {[%clk 0:00:36]}  Kc7 {[%clk 0:01:27]} 33. Rb4 {[%clk 0:00:19]}  Kd6 {[%clk 0:01:05]} 34. Bxc4 {[%clk 0:00:14]}  dxc4 {[%clk 0:01:05]} 35. Kd2 {[%clk 0:00:15]}  Kd5 {[%clk 0:00:56]} 36. Kc3 {[%clk 0:00:15]}  g5 {[%clk 0:00:56]} 37. b6 {[%clk 0:00:14]}  f6 {[%clk 0:00:16]} 38. b7 {[%clk 0:00:13]}  Kc6 {[%clk 0:00:09]} 39. Kxc4 {[%clk 0:00:13]}  Kc7 {[%clk 0:00:05]} 40. Kb3 {[%clk 0:00:11]}  Rxb7 {[%clk 0:00:03]} 41. Rxb7+ {[%clk 0:00:11]}  Kxb7 {[%clk 0:00:04]} 42. Kxa3 {[%clk 0:00:11]}  Kc6 {[%clk 0:00:05]} 43. Kb4 {[%clk 0:00:11]}  Kd5 {[%clk 0:00:06]} 44. a4 {[%clk 0:00:10]}  Kxd4 {[%clk 0:00:05]} 45. a5 {[%clk 0:00:11]}  Kd5 {[%clk 0:00:04]} 46. Kb5 {[%clk 0:00:11]}  Kd6 {[%clk 0:00:00]} 47. Kb6 {[%clk 0:00:11]} 1-0


[Site "https://www.chess.com"]

[Event "Titled Tuesday Blitz May 23 Early 2023"]
[White "Radzhabov, Rodion"]
[Black "Yurasova, Daria"]
[WhiteFideId "884715"]
[BlackFideId "34146919"]
[WhiteElo "2215"]
[BlackElo "2109"]
[Result "1-0"]
[Round "04"]
[TimeControl "180+2"]
[Date "2023.05.23"]
[WhiteClock "0:00:14"]
[BlackClock "0:00:04"]

1. e4 {[%clk 0:03:00]}  e5 {[%clk 0:02:59]} 2. Nf3 {[%clk 0:03:00]}  Nc6 {[%clk 0:02:59]} 3. Nc3 {[%clk 0:03:01]}  Nf6 {[%clk 0:02:59]} 4. Be2 {[%clk 0:03:01]}  Be7 {[%clk 0:02:57]} 5. O-O {[%clk 0:03:00]}  d6 {[%clk 0:02:57]} 6. d4 {[%clk 0:03:00]}  O-O {[%clk 0:02:55]} 7. h3 {[%clk 0:02:59]}  h6 {[%clk 0:02:51]} 8. Be3 {[%clk 0:02:56]}  a6 {[%clk 0:02:47]} 9. a4 {[%clk 0:02:53]}  b6 {[%clk 0:02:39]} 10. Qd2 {[%clk 0:02:40]}  Bb7 {[%clk 0:02:39]} 11. d5 {[%clk 0:02:10]}  Nb8 {[%clk 0:02:32]} 12. Nh2 {[%clk 0:02:02]}  Nbd7 {[%clk 0:02:26]} 13. b4 {[%clk 0:01:57]}  c6 {[%clk 0:01:55]} 14. dxc6 {[%clk 0:01:26]}  Bxc6 {[%clk 0:01:54]} 15. f3 {[%clk 0:01:26]}  Qc7 {[%clk 0:01:52]} 16. b5 {[%clk 0:01:22]}  axb5 {[%clk 0:01:44]} 17. Nxb5 {[%clk 0:01:22]}  Bxb5 {[%clk 0:01:41]} 18. Bxb5 {[%clk 0:01:22]}  Nc5 {[%clk 0:01:39]} 19. Rfd1 {[%clk 0:01:17]}  Rfc8 {[%clk 0:01:38]} 20. Ng4 {[%clk 0:00:59]}  Ne8 {[%clk 0:01:14]} 21. Qd5 {[%clk 0:00:49]}  h5 {[%clk 0:01:13]} 22. Nf2 {[%clk 0:00:42]}  Nf6 {[%clk 0:01:13]} 23. Qd2 {[%clk 0:00:39]}  Ne6 {[%clk 0:01:08]} 24. c4 {[%clk 0:00:35]}  Nc5 {[%clk 0:01:04]} 25. Nd3 {[%clk 0:00:33]}  Nb3 {[%clk 0:01:03]} 26. Qb2 {[%clk 0:00:32]}  Nxa1 {[%clk 0:01:04]} 27. Rxa1 {[%clk 0:00:32]}  Nd7 {[%clk 0:01:00]} 28. Nb4 {[%clk 0:00:30]}  Nf6 {[%clk 0:00:57]} 29. Qf2 {[%clk 0:00:31]}  Qb7 {[%clk 0:00:25]} 30. g4 {[%clk 0:00:26]}  hxg4 {[%clk 0:00:25]} 31. hxg4 {[%clk 0:00:27]}  d5 {[%clk 0:00:20]} 32. Nxd5 {[%clk 0:00:26]}  Nxd5 {[%clk 0:00:21]} 33. exd5 {[%clk 0:00:27]}  Bc5 {[%clk 0:00:20]} 34. Bxc5 {[%clk 0:00:22]}  bxc5 {[%clk 0:00:20]} 35. d6 {[%clk 0:00:17]}  Qb6 {[%clk 0:00:18]} 36. d7 {[%clk 0:00:16]}  Rd8 {[%clk 0:00:18]} 37. Rd1 {[%clk 0:00:17]}  Qf6 {[%clk 0:00:17]} 38. Rd5 {[%clk 0:00:16]}  Rab8 {[%clk 0:00:07]} 39. Kg2 {[%clk 0:00:16]}  e4 {[%clk 0:00:04]} 40. fxe4 {[%clk 0:00:16]}  Qe6 {[%clk 0:00:05]} 41. Qf5 {[%clk 0:00:16]}  Qe7 {[%clk 0:00:05]} 42. Qe5 {[%clk 0:00:14]}  Qh4 {[%clk 0:00:05]} 43. Qg3 {[%clk 0:00:14]}  Qf6 {[%clk 0:00:05]} 44. Re5 {[%clk 0:00:13]}  Qc6 {[%clk 0:00:03]} 45. Bxc6 {[%clk 0:00:12]}  Rb2+ {[%clk 0:00:03]} 46. Kh3 {[%clk 0:00:12]}  Rbb8 {[%clk 0:00:03]} 47. Re8+ {[%clk 0:00:13]}  Rxe8 {[%clk 0:00:04]} 48. dxe8=Q+ {[%clk 0:00:13]}  Rxe8 {[%clk 0:00:04]} 49. Bxe8 {[%clk 0:00:14]} 1-0


[Site "https://www.chess.com"]

[Event "Titled Tuesday Blitz May 23 Early 2023"]
[White "Zaitsev, Alexander"]
[Black "Stoleriu, George"]
[WhiteFideId "4164490"]
[BlackFideId "1227505"]
[WhiteElo "2373"]
[BlackElo "2308"]
[Result "0-1"]
[Round "04"]
[TimeControl "180+2"]
[Date "2023.05.23"]
[WhiteClock "0:00:00"]
[BlackClock "0:00:04"]

1. e4 {[%clk 0:03:00]}  c5 {[%clk 0:02:56]} 2. Nf3 {[%clk 0:03:00]}  Nc6 {[%clk 0:02:52]} 3. Bb5 {[%clk 0:03:00]}  g6 {[%clk 0:02:38]} 4. Bxc6 {[%clk 0:02:58]}  dxc6 {[%clk 0:02:39]} 5. h3 {[%clk 0:02:58]}  Bg7 {[%clk 0:02:36]} 6. d3 {[%clk 0:02:58]}  Nf6 {[%clk 0:02:33]} 7. Nc3 {[%clk 0:02:57]}  Nd7 {[%clk 0:02:21]} 8. Be3 {[%clk 0:02:57]}  e5 {[%clk 0:02:18]} 9. Qd2 {[%clk 0:02:57]}  Qe7 {[%clk 0:01:47]} 10. Bh6 {[%clk 0:02:52]}  O-O {[%clk 0:01:42]} 11. h4 {[%clk 0:02:33]}  f6 {[%clk 0:01:31]} 12. Bxg7 {[%clk 0:02:25]}  Kxg7 {[%clk 0:01:21]} 13. h5 {[%clk 0:02:25]}  g5 {[%clk 0:01:20]} 14. h6+ {[%clk 0:02:21]}  Kh8 {[%clk 0:01:13]} 15. O-O-O {[%clk 0:02:19]}  Rd8 {[%clk 0:01:11]} 16. Nh2 {[%clk 0:02:01]}  Nf8 {[%clk 0:01:07]} 17. g3 {[%clk 0:02:02]}  Ng6 {[%clk 0:00:53]} 18. Ne2 {[%clk 0:01:59]}  c4 {[%clk 0:00:23]} 19. f4 {[%clk 0:01:50]}  cxd3 {[%clk 0:00:20]} 20. cxd3 {[%clk 0:01:50]}  exf4 {[%clk 0:00:18]} 21. gxf4 {[%clk 0:01:50]}  gxf4 {[%clk 0:00:18]} 22. Nxf4 {[%clk 0:01:43]}  Nxf4 {[%clk 0:00:14]} 23. Qxf4 {[%clk 0:01:44]}  Qe5 {[%clk 0:00:11]} 24. Qf3 {[%clk 0:01:16]}  Be6 {[%clk 0:00:10]} 25. Kb1 {[%clk 0:01:15]}  Rg8 {[%clk 0:00:07]} 26. d4 {[%clk 0:01:10]}  Qg5 {[%clk 0:00:06]} 27. d5 {[%clk 0:01:01]}  cxd5 {[%clk 0:00:05]} 28. exd5 {[%clk 0:01:02]}  Qf5+ {[%clk 0:00:06]} 29. Qxf5 {[%clk 0:00:52]}  Bxf5+ {[%clk 0:00:07]} 30. Ka1 {[%clk 0:00:52]}  Rad8 {[%clk 0:00:06]} 31. Rhf1 {[%clk 0:00:48]}  Be4 {[%clk 0:00:06]} 32. d6 {[%clk 0:00:43]}  f5 {[%clk 0:00:06]} 33. a3 {[%clk 0:00:36]}  Rd7 {[%clk 0:00:05]} 34. Nf3 {[%clk 0:00:35]}  Bxf3 {[%clk 0:00:03]} 35. Rxf3 {[%clk 0:00:36]}  Rf8 {[%clk 0:00:03]} 36. Rc3 {[%clk 0:00:30]}  Kg8 {[%clk 0:00:02]} 37. Rg1+ {[%clk 0:00:22]}  Kh8 {[%clk 0:00:02]} 38. Rd1 {[%clk 0:00:19]}  Kg8 {[%clk 0:00:03]} 39. Rc7 {[%clk 0:00:19]}  Rfd8 {[%clk 0:00:03]} 40. Rxd7 {[%clk 0:00:07]}  Rxd7 {[%clk 0:00:04]} 41. Rd5 {[%clk 0:00:05]}  f4 {[%clk 0:00:04]} 42. Rg5+ {[%clk 0:00:02]}  Kf7 {[%clk 0:00:04]} 43. Rf5+ {[%clk 0:00:01]}  Ke8 {[%clk 0:00:04]} 44. Rxf4 {[%clk 0:00:02]}  Rxd6 {[%clk 0:00:05]} 45. Rh4 {[%clk 0:00:01]}  Kf7 {[%clk 0:00:03]} 46. Ka2 {[%clk 0:00:02]}  Kg6 {[%clk 0:00:04]} 47. Kb3 {[%clk 0:00:00]}  Kg5 {[%clk 0:00:04]} 0-1


[Site "https://www.chess.com"]